[Event "30th NATO Chess-ch 2019"]
[Site "Berlin"]
[Date "2019.09.18"]
[Round "4.27"]
[White "Marquardt, Christian"]
[Black "Glibert, Stephane"]
[Result "1/2-1/2"]
[ECO "A45"]
[WhiteElo "2049"]
[BlackElo "1865"]
[Annotator "NA RC"]
[PlyCount "81"]
[EventDate "2019.09.16"]
[EventType "swiss"]
[EventCountry "GER"]
[SourceTitle "playchess.com"]
[Source "ChessBase"]
[SourceQuality "1"]
[TimeControl "40/7200:1800"]

1. d4 {[%emt 1:59:55]} Nf6 {[%emt 1:59:48]} 2. Bg5 {[%emt 1:59:33]} Ne4 {[%emt 1:59:04]} 3. Bf4 {[%emt 1:59:24]} d5 {[%emt 1:58:57]} 4. e3 {[%emt 1:58:57]} e6 {[%emt 1:58:59]} 5. Bd3 {[%emt 1:57:59]} Bd6 {[%emt 1:54:25]} 6. Bxe4 {[%emt 1:56:39] A45: Trompowsky Attack} Bxf4 {[%emt 1:56:39]} 7. Bd3 {[%emt 1:55:50]} (7. exf4 dxe4 8. Nc3 Nc6 9. Nge2 f5 10. Qd2 O-O 11. O-O-O a5 12. h3 a4 13. a3 b5 {½-½ (58) Vitiugov,N (2726)-Grandelius,N (2643) Doha 2016}) 7... Bd6 {[%emt 1:52:26]} 8. Nf3 {[%emt 1:55:23]} Nd7 {[%emt 1:50:31]} 9. O-O {[%emt 1:50:31]} b6 $146 {[%emt 1:44:25]} ({Predecessor:} 9... O-O 10. Nc3 c6 11. e4 f5 12. e5 Be7 13. Ne2 g5 {½-½ (37) Aranaz Portugues,J (2096)-Dathie,J Erice 2014}) 10. Nbd2 {[%emt 1:50:12]} Bb7 {[%emt 1:43:58]} 11. a4 {[%emt 1:48:47]} c5 {[%emt 1:36:19]} 12. c3 {[%emt 1:48:30]} O-O {[%emt 1:31:48]} 13. Qe2 {[%emt 1:31:48]} f5 {[%emt 1:43:37]} 14. c4 {[%emt 1:22:29]} e5 {[%emt 1:13:54]} 15. dxe5 {[%emt 1:35:30]} Nxe5 {[%emt 1:13:12]} 16. Nxe5 {[%emt 1:13:12]} Bxe5 {[%emt 1:31:40]} 17. Nf3 {[%emt 1:31:32]} Qf6 {[%emt 1:12:29]} 18. Nxe5 {[%emt 1:28:00]} Qxe5 {[%emt 1:28:00]} 19. Rfd1 {[%emt 1:23:00]} a5 {[%emt 0:53:17]} 20. cxd5 {[%emt 0:53:17]} Rad8 {[%emt 1:19:34]} 21. Bc4 {[%emt 0:42:10]} Rd6 {[%emt 1:18:07]} 22. Rd2 {[%emt 1:15:47]} Rfd8 {[%emt 0:41:08]} 23. Rad1 {[%emt 0:41:08]} Kf8 {[%emt 1:15:17]} 24. Qf3 {[%emt 1:12:51]} Ke7 {[%emt 1:12:51]} 25. g3 {[%emt 0:32:08]} Rf8 {[%emt 1:08:47]} 26. b3 {[%emt 1:05:35]} Rff6 {[%emt 1:05:35]} 27. Re2 {[%emt 0:27:29]} Qe4 {[%emt 0:22:27]} 28. Kg2 $11 {[%emt 0:56:52]} (28. Qf4 $16) 28... g5 {[%emt 0:18:15]} 29. g4 {[%emt 0:51:37]} Qe5 {[%emt 0:09:32]} 30. Qg3 {[%emt 0:50:39]} Bxd5+ {[%emt 0:50:39]} 31. Bxd5 {[%emt 0:47:38]} Rxd5 {[%emt 0:05:29]} 32. Qxe5+ {[%emt 0:05:28]} Rxe5 {[%emt 0:05:28]} 33. Red2 {[%emt 0:44:35]} Kf7 {[%emt 0:03:22]} 34. Rd7+ {[%emt 0:40:04]} Re7 {[%emt 0:03:07]} 35. R7d5 {[%emt 0:39:27]} Kg6 {[%emt 0:02:52]} 36. gxf5+ {[%emt 0:34:31]} Rxf5 {[%emt 0:02:43]} 37. Kf1 {[%emt 0:31:05]} Rf6 {[%emt 0:01:04]} 38. Ke2 {[%emt 0:29:27]} Re4 {[%emt 0:01:03]} 39. R1d3 {[%emt 0:24:56]} Rh4 {[%emt 0:00:52]} 40. Rd6 {[%emt 0:24:42]} Rb4 {[%emt 0:00:29]} 41. f3 {[%emt 0:22:38]} 1/2-1/2

[Event "30th NATO Chess-ch 2019"]
[Site "Berlin"]
[Date "2019.09.18"]
[Round "4.28"]
[White "Slaidins, Janis"]
[Black "Oblak, Nicholas"]
[Result "0-1"]
[ECO "B27"]
[WhiteElo "1834"]
[BlackElo "2048"]
[Annotator "NA RC"]
[PlyCount "58"]
[EventDate "2019.09.16"]
[EventType "swiss"]
[EventCountry "GER"]
[SourceTitle "playchess.com"]
[Source "ChessBase"]
[SourceQuality "1"]
[TimeControl "40/7200:1800"]

{[%evp 16,53,-21,32767,32767,32767,-29,32767,-56,-140,32767,32767,32767,-480,-213,32767,32767,32767,32767,-728,-863,-785,-820,-888,-902,-885,-577,-624,-615,-639,-510,-568,32767,32767,-698,-610,32767,-2370,32767,-29997]} 1. e4 {[%emt 2:00:00]} c5 {[%emt 1:59:57]} 2. Nf3 {[%emt 1:59:43]} g6 {[%emt 1:59:54]} 3. Bc4 {[%emt 1:59:54]} Bg7 {[%emt 1:59:22]} 4. c3 {[%emt 1:57:02]} d6 {[%emt 1:58:17]} 5. O-O {[%emt 1:56:28]} (5. d4 cxd4 6. cxd4 Nf6 7. Qe2 O-O 8. O-O Bg4 9. e5 dxe5 10. dxe5 Nfd7 11. e6 Ne5 12. exf7+ Kh8 13. Rd1 Qc7 14. Bd5 Nbc6 15. Nc3 e6 16. h3 Bxf3 17. Bxf3 {0-1 (42) Shaposhnikov,E (2576)-Guseinov,G (2664) St Petersburg 2018}) 5... Nf6 {[%emt 1:58:03]} 6. e5 {[%emt 1:58:03] B27: Sicilian: 2 Nf3, unusual Black 2nd moves} dxe5 {[%emt 1:54:41]} 7. Nxe5 {[%emt 1:54:24]} O-O {[%emt 1:54:24]} 8. d4 {[%emt 1:52:12]} cxd4 {[%emt 1:47:07]} 9. cxd4 {[%emt 1:47:07]} Nbd7 {[%emt 1:49:50]} 10. f4 {[%emt 1:46:05]} Nb6 {[%emt 1:45:46]} 11. b3 $146 {[%emt 1:45:49]} ({Predecessor:} 11. Bb3 Nbd5 12. Nc3 Be6 13. Qf3 Rc8 14. Bd2 Qd6 15. Rad1 Rfd8 {½-½ (41) Serdarevic,M (2272)-Nurkic,S (2394) Zenica 2002}) 11... Bf5 {[%emt 1:41:25]} 12. Ba3 {[%emt 1:44:33]} (12. Bb2 $15) 12... Nbd5 {[%emt 1:44:33]} 13. Qd2 {[%emt 1:40:37]} Rc8 {[%emt 1:42:38]} 14. Bxd5 $4 {[%emt 1:34:33]} (14. Kh1 $17) 14... Nxd5 {[%emt 1:38:49]} (14... Rc2 $142 15. Bxf7+ Rxf7 16. Nxf7 Kxf7) 15. g4 {[%emt 1:35:30]} Rc2 {[%emt 1:21:47]} 16. Qe1 {[%emt 1:32:11]} Bxg4 {[%emt 1:17:48]} 17. Nd2 {[%emt 1:28:49]} (17. Rf2 $142 Rxf2 18. Qxf2) 17... Bxe5 {[%emt 1:28:49]} 18. fxe5 {[%emt 1:26:59]} Nc3 {[%emt 1:10:55] Discovered Attack} 19. Qe3 {[%emt 1:10:55]} Ne2+ {[%emt 1:25:20] Double Attack} 20. Kg2 {[%emt 1:24:46]} Rxd2 {[%emt 1:09:00]} 21. Qxd2 {[%emt 1:24:27]} Qd5+ {[%emt 1:08:57]} 22. Kf2 {[%emt 1:08:57]} Nxd4 {[%emt 1:24:00]} 23. Rac1 {[%emt 1:18:31]} Qf3+ {[%emt 1:18:31]} 24. Ke1 {[%emt 1:16:28]} Qe4+ {[%emt 0:59:27] Double Attack} 25. Kf2 {[%emt 1:15:57]} Bh3 {[%emt 0:54:53]} 26. Rg1 $19 {[%emt 1:02:28]} Qf5+ {[%emt 1:02:28]} 27. Kg3 {[%emt 1:01:06]} Qf3+ {[%emt 0:53:47]} 28. Kh4 {[%emt 0:53:44]} Nf5+ {[%emt 0:53:44]} 29. Kg5 {[%emt 0:53:44]} h6# {[%emt 0:53:41]} 0-1

[Event "30th NATO Chess-ch 2019"]
[Site "Berlin"]
[Date "2019.09.18"]
[Round "4.30"]
[White "Geroly, Jozsef"]
[Black "Aagaard, Gert"]
[Result "0-1"]
[ECO "D11"]
[WhiteElo "1766"]
[BlackElo "2029"]
[Annotator "NA"]
[PlyCount "86"]
[EventDate "2019.09.16"]
[EventType "swiss"]
[EventCountry "GER"]
[SourceTitle "playchess.com"]
[Source "ChessBase"]
[SourceQuality "1"]
[TimeControl "40/7200:1800"]

1. Nf3 {[%emt 1:59:50]} Nf6 {[%emt 1:59:50]} 2. d4 {[%emt 1:59:42]} d5 {[%emt 1:59:42]} 3. g3 {[%emt 1:59:32]} Bf5 {[%emt 1:58:14]} 4. Bg2 {[%emt 1:58:14]} e6 {[%emt 1:56:56]} 5. c4 {[%emt 1:56:56]} c6 {[%emt 1:52:40]} 6. O-O {[%emt 1:52:21]} Be7 {[%emt 1:52:21]} 7. Nc3 {[%emt 1:52:00]} O-O {[%emt 1:52:00]} 8. a3 {[%emt 1:51:40] D11: Slav Defence: 3 Nf3 sidelines and 3...Nf6 4 e3 Bg4} (8. b3 Ne4 9. Bb2 Qa5 10. Nxe4 Bxe4 11. Ne5 Bxg2 12. Kxg2 Rd8 13. Qc2 {½-½ (13) Berkes,F (2678)-Saric,I (2691) Brixen Bressanone 2019}) 8... a6 $146 {[%emt 1:51:40]} ({Predecessor:} 8... a5 9. Qb3 b6 10. cxd5 cxd5 11. Nb5 Nc6 12. Bf4 Na7 13. Nxa7 Rxa7 14. Ne5 Rb7 15. Nc6 Qd7 {1-0 (51) Sokalskaja,E (2047)-Moenster,M (1922) Germany 2018}) 9. b4 {[%emt 1:49:39]} dxc4 {[%emt 1:54:16]} 10. Ne5 {[%emt 1:49:13]} b5 {[%emt 1:51:23]} 11. Nxc6 {[%emt 1:51:23]} Nxc6 {[%emt 1:47:40]} 12. Bxc6 {[%emt 1:47:26]} Bh3 {[%emt 1:47:26]} 13. Bxa8 {[%emt 1:41:44]} Qxa8 {[%emt 1:48:15]} 14. f3 {[%emt 1:41:36]} Bxf1 {[%emt 1:46:31]} 15. Kxf1 {[%emt 1:46:31]} Nd5 {[%emt 1:45:59]} 16. Qc2 {[%emt 1:45:59]} Rd8 {[%emt 1:42:44]} 17. e4 {[%emt 1:42:44]} Nxc3 {[%emt 1:18:49]} 18. Qxc3 {[%emt 1:18:16]} h5 {[%emt 1:25:04]} 19. Bb2 {[%emt 1:05:30]} Bf6 $15 {[%emt 1:22:24]} 20. Qe3 {[%emt 1:22:24]} Qa7 {[%emt 1:02:34]} 21. e5 {[%emt 0:57:24]} Be7 {[%emt 1:20:41]} 22. Bc3 {[%emt 0:57:11]} Rd5 {[%emt 1:15:06]} 23. f4 {[%emt 0:50:38]} Qd7 {[%emt 1:13:31]} 24. Rd1 {[%emt 1:13:31]} Bd8 {[%emt 0:48:29]} 25. Kf2 {[%emt 1:09:44]} Bb6 {[%emt 1:05:23]} 26. Rd2 {[%emt 0:45:44]} Qd8 {[%emt 1:05:00]} 27. Qe4 {[%emt 0:45:16]} g6 {[%emt 1:04:05]} 28. Ke3 {[%emt 0:43:42]} a5 {[%emt 0:57:47]} 29. h3 {[%emt 0:35:53]} axb4 {[%emt 0:52:25]} 30. axb4 {[%emt 0:33:09]} Qa8 {[%emt 0:33:09]} 31. Qb1 {[%emt 0:30:46]} Qa7 {[%emt 0:40:00]} 32. Qa1 {[%emt 0:28:49]} Qxa1 {[%emt 0:31:00]} 33. Bxa1 {[%emt 0:28:47]} Kf8 {[%emt 0:28:47]} 34. Ke4 {[%emt 0:30:38]} Ke7 {[%emt 0:28:16]} 35. g4 {[%emt 0:27:50]} hxg4 {[%emt 0:29:56]} 36. hxg4 {[%emt 0:27:49]} Bc7 {[%emt 0:26:54]} 37. f5 {[%emt 0:26:54]} Bxe5 {[%emt 0:25:40]} 38. Ra2 {[%emt 0:22:54]} Bc7 {[%emt 0:24:27]} 39. Ra7 {[%emt 0:24:27]} gxf5+ {[%emt 0:20:02]} 40. gxf5 {[%emt 0:19:50]} Kd7 {[%emt 0:19:50]} 41. Bc3 {[%emt 0:18:57]} Rxf5 {[%emt 0:22:52]} 42. Be1 {[%emt 0:18:29]} Kc6 {[%emt 0:21:45]} 43. d5+ {[%emt 0:14:42]} Rxd5 {[%emt 0:21:13]} 0-1

[Event "30th NATO Chess-ch 2019"]
[Site "Berlin"]
[Date "2019.09.19"]
[Round "5.1"]
[White "Binder, Tamas"]
[Black "Papasimakopoulos, Alexandros"]
[Result "1/2-1/2"]
[ECO "A46"]
[WhiteElo "2261"]
[BlackElo "2218"]
[Annotator "ChessBase"]
[PlyCount "129"]
[EventDate "2019.09.16"]
[EventType "swiss"]
[EventCountry "GER"]
[SourceTitle "playchess.com"]
[Source "ChessBase"]
[SourceQuality "1"]
[TimeControl "40/7200:1800"]

1. d4 {[%emt 1:59:29]} e6 {[%emt 1:59:29]} 2. Nf3 {[%emt 1:58:40]} Nf6 {[%emt 1:58:40]} 3. Bg5 {[%emt 1:59:39]} c5 {[%emt 1:58:00]} 4. Bxf6 {[%emt 1:59:29]} Qxf6 {[%emt 1:57:51]} 5. e3 {[%emt 1:58:58]} Nc6 {[%emt 1:58:12]} 6. c3 {[%emt 1:54:23]} d5 {[%emt 1:58:00]} 7. Be2 {[%emt 1:58:00]} Bd6 {[%emt 1:52:37]} 8. Nbd2 {[%emt 1:51:23]} O-O {[%emt 1:57:06]} 9. O-O {[%emt 1:51:13]} b6 {[%emt 1:51:13]} 10. Qa4 {[%emt 1:49:58]} Bd7 {[%emt 1:52:33]} 11. Qc2 {[%emt 1:46:31]} e5 {[%emt 1:46:31]} 12. dxe5 {[%emt 1:45:30]} Nxe5 {[%emt 1:43:15]} 13. Nxe5 {[%emt 1:45:20]} Qxe5 {[%emt 1:45:20]} 14. Nf3 {[%emt 1:45:13]} Qh5 {[%emt 1:41:21]} 15. Rfd1 {[%emt 1:41:10]} Rad8 {[%emt 1:41:10]} 16. e4 {[%emt 1:24:56]} Bc6 {[%emt 1:22:19]} 17. exd5 {[%emt 1:35:17]} Bxd5 {[%emt 1:21:28]} 18. h3 {[%emt 1:21:28]} Rfe8 {[%emt 1:34:51]} 19. Re1 {[%emt 1:28:22]} Be4 {[%emt 1:05:28]} 20. Qa4 {[%emt 1:27:26]} Qg6 {[%emt 1:05:27]} 21. Bd3 {[%emt 1:10:35]} Bc6 {[%emt 1:02:41]} 22. Qc2 {[%emt 1:08:57]} Qh5 {[%emt 1:08:57]} 23. Be4 {[%emt 1:06:07]} Bd7 {[%emt 1:06:07]} 24. Rad1 {[%emt 1:01:30]} Be6 {[%emt 1:01:30]} 25. c4 {[%emt 0:59:44]} Bb8 {[%emt 0:50:37]} 26. Bd5 {[%emt 0:50:37]} Qf5 {[%emt 0:58:38]} 27. Qa4 {[%emt 0:42:02]} Bd7 {[%emt 0:53:17]} 28. Bc6 {[%emt 0:50:32]} Bxc6 {[%emt 0:50:32]} 29. Qxc6 {[%emt 0:50:10]} Kf8 {[%emt 0:35:11]} 30. Rxe8+ {[%emt 0:47:07]} Rxe8 {[%emt 0:34:33]} 31. Qd7 {[%emt 0:34:33]} Qf4 {[%emt 0:46:23]} 32. b3 {[%emt 0:45:23]} g6 {[%emt 0:45:23]} 33. Qd2 {[%emt 0:43:39]} Re7 34. Qb2 {[%emt 0:24:07]} f6 {[%emt 0:24:07]} 35. Rd8+ {[%emt 0:39:30]} Kg7 {[%emt 0:23:39]} 36. Qd2 {[%emt 0:38:41]} Qxd2 {[%emt 0:22:03]} 37. Nxd2 {[%emt 0:37:29]} Bc7 {[%emt 0:37:29]} 38. Ra8 {[%emt 0:21:40]} Bf4 {[%emt 0:35:27]} 39. Nf3 {[%emt 0:34:53]} h5 {[%emt 0:20:09]} 40. Kf1 {[%emt 0:34:16]} Rb7 {[%emt 0:34:16]} 41. Rd8 {[%emt 0:18:37]} Re7 {[%emt 0:17:48]} 42. g3 {[%emt 0:31:45]} Bh6 {[%emt 0:31:45]} 43. Ne1 {[%emt 0:31:11]} f5 {[%emt 0:16:26]} 44. Nd3 {[%emt 0:28:48]} Bg5 {[%emt 0:28:48]} 45. Rd5 {[%emt 0:28:01]} Bf6 {[%emt 0:28:01]} 46. Rd6 {[%emt 0:27:03]} g5 {[%emt 0:27:03]} 47. Ne1 {[%emt 0:25:06]} g4 {[%emt 0:05:55]} 48. hxg4 {[%emt 0:24:56]} hxg4 {[%emt 0:05:12]} 49. Ng2 {[%emt 0:24:33]} Bg5 {[%emt 0:04:39]} 50. Ne1 {[%emt 0:23:59]} f4 {[%emt 0:03:45]} 51. Rd5 {[%emt 0:22:57]} Kf6 {[%emt 0:02:02]} 52. gxf4 {[%emt 0:22:20]} Bxf4 {[%emt 0:01:54]} 53. Nd3 Bc7 {[%emt 0:22:14]} 54. a3 {[%emt 0:17:01]} g3 {[%emt 0:29:44]} 55. fxg3 {[%emt 0:45:48]} Bxg3 {[%emt 0:29:42]} 56. b4 {[%emt 0:45:39]} cxb4 {[%emt 0:29:00]} 57. axb4 {[%emt 0:45:31]} Re3 {[%emt 0:25:15]} 58. c5 {[%emt 0:44:12]} Ke6 59. Rd8 {[%emt 0:43:55]} Ke7 {[%emt 0:24:08]} 60. Rd4 {[%emt 0:24:08]} bxc5 {[%emt 0:42:39]} 61. Nxc5 {[%emt 0:23:23]} Re1+ {[%emt 0:22:46]} 62. Kg2 {[%emt 0:22:46]} Bd6 {[%emt 0:42:03]} 63. Nd3 {[%emt 0:22:34]} Re3 {[%emt 0:40:09]} 64. Kf2 {[%emt 0:39:36]} Rh3 {[%emt 0:21:14]} 65. Ke2 {[%emt 0:21:14]} 1/2-1/2

[Event "30th NATO Chess-ch 2019"]
[Site "Berlin"]
[Date "2019.09.19"]
[Round "5.2"]
[White "Graczyk, Damian"]
[Black "Pavlidis, Antonios"]
[Result "1/2-1/2"]
[ECO "E69"]
[WhiteElo "2133"]
[BlackElo "2550"]
[Annotator "ChessBase"]
[PlyCount "87"]
[EventDate "2019.09.16"]
[EventType "swiss"]
[EventCountry "GER"]
[SourceTitle "playchess.com"]
[Source "ChessBase"]
[SourceQuality "1"]
[TimeControl "40/7200:1800"]

1. d4 {[%emt 1:59:56]} Nf6 {[%emt 1:59:56]} 2. Nf3 {[%emt 1:59:46]} g6 {[%emt 1:59:30]} 3. c4 {[%emt 1:59:34]} Bg7 {[%emt 1:59:02]} 4. g3 {[%emt 1:59:29]} O-O {[%emt 1:58:48]} 5. Bg2 {[%emt 1:58:48]} d6 {[%emt 1:59:26]} 6. O-O {[%emt 1:59:21]} Nbd7 {[%emt 1:59:21]} 7. Nc3 {[%emt 1:59:17]} e5 {[%emt 1:58:20]} 8. e4 {[%emt 1:59:03]} c6 {[%emt 1:58:12]} 9. h3 {[%emt 1:58:55]} Qb6 {[%emt 1:55:43]} 10. c5 {[%emt 1:58:43]} dxc5 {[%emt 1:55:36]} 11. dxe5 {[%emt 1:55:36]} Ne8 {[%emt 1:58:39]} 12. e6 {[%emt 1:55:09]} fxe6 {[%emt 1:55:00]} 13. Ng5 {[%emt 1:58:32]} Ne5 {[%emt 1:58:32]} 14. f4 {[%emt 1:58:28]} Nf7 {[%emt 1:58:28]} 15. Nxf7 {[%emt 1:58:23]} Bd4+ {[%emt 1:53:42]} 16. Kh2 {[%emt 1:57:58]} Rxf7 {[%emt 1:57:58]} 17. e5 {[%emt 1:57:53]} Qc7 {[%emt 1:52:08]} 18. Ne4 {[%emt 1:52:08]} b6 {[%emt 1:50:44]} 19. h4 {[%emt 1:56:15]} Ba6 {[%emt 1:49:16]} 20. Re1 {[%emt 1:50:26]} Bc4 {[%emt 1:50:26]} 21. Ng5 {[%emt 1:39:45]} Re7 {[%emt 1:47:59]} 22. h5 {[%emt 1:46:11]} Rd8 {[%emt 1:46:11]} 23. Qg4 {[%emt 1:41:39]} Bd3 {[%emt 1:02:48]} 24. Be4 {[%emt 1:37:29]} Bxe4 {[%emt 1:37:29]} 25. Nxe4 {[%emt 1:37:26]} Qd7 {[%emt 1:37:26]} 26. hxg6 {[%emt 1:25:26]} hxg6 {[%emt 0:52:48]} 27. Kg2 {[%emt 1:25:14]} Qd5 {[%emt 0:42:37]} 28. a4 {[%emt 1:13:45]} Rg7 {[%emt 0:34:41]} 29. Ra3 {[%emt 1:11:28]} Rdd7 {[%emt 0:33:40]} 30. Rf3 {[%emt 0:33:40]} Rdf7 {[%emt 0:33:09]} 31. Ng5 {[%emt 0:33:09]} Rf5 {[%emt 1:10:04]} 32. Qh3 {[%emt 1:05:08]} Qc4 {[%emt 0:19:36]} 33. g4 {[%emt 1:02:50]} Qc2+ {[%emt 1:02:50]} 34. Kg3 {[%emt 0:13:05]} Rff7 {[%emt 0:52:06]} 35. Rh1 {[%emt 0:47:40]} Kf8 {[%emt 0:47:40]} 36. Nxe6+ {[%emt 0:47:33]} Ke7 {[%emt 0:47:33]} 37. Nxg7 {[%emt 0:47:28]} Nxg7 {[%emt 0:47:28]} 38. Qh4+ {[%emt 0:02:43]} Kd7 {[%emt 0:44:12]} 39. Qh8 {[%emt 0:41:16]} g5 {[%emt 0:01:20]} 40. Qb8 {[%emt 0:01:20]} gxf4+ {[%emt 0:39:29]} 41. Rxf4 {[%emt 0:02:41]} Qd3+ {[%emt 0:32:41]} 42. Kh4 {[%emt 0:28:56]} Qh7+ {[%emt 0:23:03]} 43. Kg3 {[%emt 0:30:05]} Qd3+ {[%emt 0:22:56]} 44. Kh4 {[%emt 0:22:56]} 1/2-1/2

[Event "30th NATO Chess-ch 2019"]
[Site "Berlin"]
[Date "2019.09.19"]
[Round "5.3"]
[White "Onley, David E"]
[Black "Wang, Eigen"]
[Result "0-1"]
[ECO "C05"]
[WhiteElo "2103"]
[BlackElo "2193"]
[Annotator "ChessBase"]
[PlyCount "48"]
[EventDate "2019.09.16"]
[EventType "swiss"]
[EventCountry "GER"]
[SourceTitle "playchess.com"]
[Source "ChessBase"]
[SourceQuality "1"]
[TimeControl "40/7200:1800"]

1. e4 {[%emt 1:59:57]} e6 {[%emt 1:59:56]} 2. d4 {[%emt 1:59:49]} d5 {[%emt 1:59:49]} 3. Nd2 {[%emt 1:59:52]} Be7 {[%emt 1:59:47]} 4. Ngf3 {[%emt 1:59:47]} Nf6 {[%emt 1:59:39]} 5. Bd3 {[%emt 1:56:46]} c5 {[%emt 1:56:46]} 6. e5 {[%emt 1:54:23]} Nfd7 {[%emt 1:59:01]} 7. c4 {[%emt 1:49:58]} Nc6 {[%emt 1:54:03]} 8. cxd5 {[%emt 1:48:37]} exd5 {[%emt 1:48:37]} 9. O-O {[%emt 1:42:20]} cxd4 {[%emt 1:38:04]} 10. Re1 {[%emt 1:38:04]} Nc5 {[%emt 1:33:23]} 11. Bb1 {[%emt 1:33:23]} Bg4 {[%emt 1:28:12]} 12. Nb3 {[%emt 1:28:12]} Ne6 {[%emt 1:25:16]} 13. Qd3 {[%emt 1:11:07]} Qb6 {[%emt 1:20:32]} 14. Bd2 {[%emt 0:46:34]} Bh5 {[%emt 1:13:49]} 15. Qf5 {[%emt 0:38:46]} Bg6 {[%emt 0:38:46]} 16. Qg4 {[%emt 1:10:39]} d3 {[%emt 0:35:10]} 17. Nh4 {[%emt 0:29:04]} Bxh4 {[%emt 0:55:11]} 18. Qxh4 {[%emt 0:28:58]} O-O {[%emt 0:53:32]} 19. Qh3 {[%emt 0:53:32]} Nb4 {[%emt 0:45:16]} 20. Qf3 {[%emt 0:19:19]} a5 {[%emt 0:19:19]} 21. Bxb4 {[%emt 0:12:53]} Qxb4 {[%emt 0:35:21]} 22. Bxd3 {[%emt 0:11:53]} a4 {[%emt 0:34:38]} 23. Bxg6 {[%emt 0:34:38]} hxg6 {[%emt 0:08:07]} 24. Qxd5 {[%emt 0:34:18]} Rfd8 {[%emt 0:06:01]} 0-1

[Event "30th NATO Chess-ch 2019"]
[Site "Berlin"]
[Date "2019.09.19"]
[Round "5.4"]
[White "Everett, Elijah"]
[Black "Mouroutis, Konstantinos"]
[Result "1-0"]
[ECO "B32"]
[WhiteElo "2187"]
[BlackElo "2181"]
[Annotator "ChessBase"]
[PlyCount "86"]
[EventDate "2019.09.16"]
[EventType "swiss"]
[EventCountry "GER"]
[SourceTitle "playchess.com"]
[Source "ChessBase"]
[SourceQuality "1"]
[TimeControl "40/7200:1800"]

1. e4 {[%emt 2:00:00]} c5 {[%emt 1:59:56]} 2. Nf3 {[%emt 1:59:49]} Nc6 {[%emt 1:59:40]} 3. d4 {[%emt 1:59:40]} cxd4 {[%emt 1:59:31]} 4. Nxd4 {[%emt 1:59:34]} e5 {[%emt 1:59:34]} 5. Nb5 {[%emt 1:59:23]} a6 {[%emt 1:59:16]} 6. Nd6+ {[%emt 1:59:22]} Bxd6 {[%emt 1:59:11]} 7. Qxd6 {[%emt 1:59:11]} Qf6 {[%emt 1:59:06]} 8. Qd1 {[%emt 1:59:05]} Qg6 {[%emt 1:58:53]} 9. Nc3 {[%emt 1:58:13]} Nf6 {[%emt 1:58:14]} 10. Qd6 {[%emt 1:58:14]} Ng4 {[%emt 1:55:34]} 11. Qxg6 {[%emt 1:55:01]} hxg6 {[%emt 1:55:01]} 12. Nd5 {[%emt 1:57:56]} Rb8 {[%emt 1:50:53]} 13. Bg5 {[%emt 1:44:56]} f6 {[%emt 1:57:03]} 14. Bd2 {[%emt 1:57:03]} Nxh2 {[%emt 1:37:05]} 15. O-O-O {[%emt 1:53:58]} d6 {[%emt 1:34:52]} 16. f3 {[%emt 1:52:57]} f5 {[%emt 1:40:58]} 17. Be3 {[%emt 1:40:58]} Rh4 {[%emt 1:26:39]} 18. Bd3 {[%emt 1:13:12]} f4 {[%emt 1:13:12]} 19. Bf2 {[%emt 1:04:00]} Rh6 {[%emt 1:04:00]} 20. Bg1 {[%emt 1:22:24]} Ng4 {[%emt 1:01:27]} 21. Bb6 {[%emt 1:21:53]} Rxh1 {[%emt 1:17:32]} 22. Rxh1 {[%emt 1:17:32]} Nh6 {[%emt 1:01:00]} 23. Bc7 {[%emt 1:00:39]} Kd7 {[%emt 1:13:38]} 24. Bxb8 {[%emt 1:13:36]} Nxb8 {[%emt 1:13:36]} 25. Nb6+ {[%emt 0:56:39]} Kc7 {[%emt 0:56:39]} 26. Nxc8 {[%emt 0:56:34]} Kxc8 {[%emt 1:13:16]} 27. g4 {[%emt 1:13:16]} fxg3 {[%emt 1:07:12]} 28. Rg1 {[%emt 1:07:12]} Nd7 {[%emt 0:55:33]} 29. Rxg3 {[%emt 1:06:31]} Nf8 {[%emt 1:06:21]} 30. Bc4 {[%emt 0:53:55]} Kd7 {[%emt 0:53:55]} 31. Bd5 {[%emt 0:53:37]} b6 {[%emt 0:53:37]} 32. a4 {[%emt 1:05:38]} a5 {[%emt 0:52:08]} 33. Kd2 {[%emt 1:03:43]} Ke7 {[%emt 0:52:45]} 34. Kd3 {[%emt 0:51:05]} Kf6 {[%emt 0:51:05]} 35. Kc4 {[%emt 0:49:58]} g5 {[%emt 0:49:58]} 36. Kb5 {[%emt 0:49:31]} g4 {[%emt 0:49:31]} 37. Kxb6 {[%emt 0:48:35]} Kg5 {[%emt 0:39:49]} 38. fxg4 {[%emt 0:39:49]} Nxg4 {[%emt 0:48:17]} 39. Kxa5 {[%emt 0:47:39]} Kh4 {[%emt 0:47:39]} 40. Rg1 {[%emt 0:36:02]} g5 {[%emt 0:47:33]} 41. Kb5 {[%emt 0:35:37]} Nf2 {[%emt 0:35:08]} 42. a5 {[%emt 0:43:04]} Nh3 {[%emt 0:34:46]} 43. Rh1 Kg4 1-0

[Event "30th NATO Chess-ch 2019"]
[Site "Berlin"]
[Date "2019.09.19"]
[Round "5.5"]
[White "Delfino, Luigi"]
[Black "Kersic, Matej"]
[Result "1-0"]
[ECO "B55"]
[WhiteElo "2235"]
[BlackElo "2122"]
[Annotator "ChessBase"]
[PlyCount "79"]
[EventDate "2019.09.16"]
[EventType "swiss"]
[EventCountry "GER"]
[SourceTitle "playchess.com"]
[Source "ChessBase"]
[SourceQuality "1"]
[TimeControl "40/7200:1800"]

1. e4 {[%emt 2:00:00]} c5 {[%emt 1:59:48]} 2. Nf3 {[%emt 1:53:38]} d6 {[%emt 1:53:38]} 3. d4 {[%emt 1:53:32]} cxd4 {[%emt 1:59:25]} 4. Nxd4 {[%emt 1:53:26]} Nf6 {[%emt 1:53:26]} 5. f3 {[%emt 1:59:12]} a6 {[%emt 1:57:10]} 6. c4 {[%emt 1:53:07]} e6 {[%emt 1:53:07]} 7. Nc3 {[%emt 1:52:16]} Be7 {[%emt 1:54:10]} 8. Be3 {[%emt 1:50:54]} Nc6 {[%emt 1:50:54]} 9. Be2 {[%emt 1:48:57]} Bd7 {[%emt 1:51:58]} 10. O-O {[%emt 1:51:58]} O-O {[%emt 1:47:47]} 11. Qd2 {[%emt 1:44:53]} Qb8 {[%emt 1:44:03]} 12. Kh1 {[%emt 1:44:03]} b5 {[%emt 1:35:42]} 13. cxb5 {[%emt 1:20:55]} Nxd4 {[%emt 1:20:55]} 14. Qxd4 {[%emt 1:20:04]} axb5 {[%emt 1:30:55]} 15. a3 {[%emt 1:11:18]} Qb7 {[%emt 1:11:18]} 16. Rfd1 {[%emt 0:52:48]} Rab8 {[%emt 0:52:48]} 17. Na2 {[%emt 1:04:55]} Rfd8 {[%emt 0:57:58]} 18. Rac1 {[%emt 0:43:44]} d5 {[%emt 0:43:44]} 19. e5 {[%emt 0:42:33]} Ne8 {[%emt 0:51:37]} 20. Nb4 {[%emt 0:39:28]} Rdc8 {[%emt 0:51:11]} 21. f4 {[%emt 0:35:41]} g6 {[%emt 0:35:41]} 22. Qa7 {[%emt 0:26:58]} Qxa7 {[%emt 0:50:11]} 23. Bxa7 {[%emt 0:26:56]} Ra8 {[%emt 0:49:56]} 24. Bd4 {[%emt 0:22:46]} h5 {[%emt 0:44:57]} 25. Nd3 {[%emt 0:18:12]} Ng7 {[%emt 0:43:56]} 26. Bc5 {[%emt 0:43:56]} Kf8 {[%emt 0:16:22]} 27. g4 {[%emt 0:39:51]} hxg4 {[%emt 0:37:19]} 28. Bxg4 {[%emt 0:13:52]} Ke8 {[%emt 0:33:45]} 29. Bxe7 {[%emt 0:13:41]} Kxe7 {[%emt 0:13:41]} 30. Rxc8 {[%emt 0:09:41]} Rxc8 {[%emt 0:09:41]} 31. Rc1 {[%emt 0:33:37]} Rxc1+ {[%emt 0:20:48]} 32. Nxc1 {[%emt 0:09:13]} d4 {[%emt 0:12:37]} 33. Nb3 {[%emt 0:07:56]} Bc6+ 34. Kg1 {[%emt 0:11:56]} d3 {[%emt 0:07:55]} 35. Kf2 {[%emt 0:11:19]} f5 {[%emt 0:08:58]} 36. Bd1 {[%emt 0:08:58]} Ne8 {[%emt 0:05:20]} 37. Nd4 {[%emt 0:04:53]} Kd7 {[%emt 0:07:22]} 38. Ke3 {[%emt 0:03:11]} Nc7 {[%emt 0:07:12]} 39. Nxc6 {[%emt 0:01:58]} Nd5+ {[%emt 0:01:58]} 40. Kd2 {[%emt 0:06:32]} 1-0